[Event "WSTCC-65 2024"]
[Site "Krakow"]
[Date "2024.07.06"]
[Round "5.5"]
[White "Becker, Norbert"]
[Black "Freeman, Richard C P"]
[Result "1/2-1/2"]
[ECO "B01"]
[WhiteElo "2047"]
[BlackElo "1951"]
[Annotator "NA RC"]
[PlyCount "79"]
[EventDate "2024.07.01"]
[EventType "team-tourn"]
[EventCountry "POL"]
[SourceTitle "playchess.com"]
[Source "ChessBase"]
[SourceQuality "1"]
[TimeControl "40/5400+30:1800+30"]

1. e4 {[%emt 0:00:05]} d5 {[%emt 0:00:07]} 2. exd5 {[%emt 0:00:19]} Nf6 {[%emt 0:00:16]} 3. Nf3 {[%emt 0:03:26]} Bg4 {[%emt 0:05:06]} 4. Bb5+ {[%emt 0:09:23]} Nbd7 {[%emt 0:04:17]} 5. h3 {[%emt 0:03:44]} Bxf3 {[%emt 0:03:38]} 6. Qxf3 {[%emt 0:01:04]} a6 {[%emt 0:00:25]} 7. Bxd7+ {[%emt 0:02:47]} Qxd7 {[%emt 0:00:16]} 8. c4 {[%emt 0:03:52]} O-O-O {[%emt 0:06:14]} 9. O-O {[%emt 0:03:58]} e6 {[%emt 0:02:29]} 10. dxe6 {[%emt 0:01:18]} Qxe6 {[%emt 0:03:16]} 11. b3 {[%emt 0:07:24]} Qe5 {[%emt 0:22:55]} 12. Nc3 {[%emt 0:01:16]} Bd6 {[%emt 0:06:56]} 13. g3 {[%emt 0:00:37]} h5 {[%emt 0:00:10]} 14. Bb2 {[%emt 0:11:55]} h4 {[%emt 0:01:30]} 15. Rfe1 {[%emt 0:15:20]} Qg5 {[%emt 0:03:29]} 16. g4 {[%emt 0:00:37]} Qxd2 {[%emt 0:04:18]} 17. Qf5+ {[%emt 0:03:40]} Kb8 {[%emt 0:02:24]} 18. Re2 {[%emt 0:00:34]} Qf4 {[%emt 0:03:41]} 19. Qxf4 {[%emt 0:01:10]} Bxf4 {[%emt 0:00:08]} 20. Ne4 {[%emt 0:04:58]} Rhe8 {[%emt 0:03:22]} 21. Rae1 {[%emt 0:03:30]} Nxe4 {[%emt 0:03:25]} 22. Rxe4 {[%emt 0:00:08]} Rxe4 {[%emt 0:00:29]} 23. Rxe4 {[%emt 0:00:08]} g5 {[%emt 0:02:02]} 24. Kg2 {[%emt 0:06:58]} Kc8 {[%emt 0:08:22]} 25. Re7 {[%emt 0:02:34]} Rd7 {[%emt 0:00:27]} 26. Re8+ {[%emt 0:06:18]} Rd8 {[%emt 0:00:06]} 27. Rxd8+ {[%emt 0:00:45]} Kxd8 {[%emt 0:00:02]} 28. Kf3 {[%emt 0:00:55]} Kd7 {[%emt 0:00:24]} 29. Ke4 {[%emt 0:00:22]} Ke6 {[%emt 0:00:07]} 30. Bd4 {[%emt 0:01:06]} f6 {[%emt 0:03:05]} 31. f3 {[%emt 0:02:37]} Bc1 {[%emt 0:02:04]} 32. Bc3 {[%emt 0:01:39]} Bf4 {[%emt 0:00:58]} 33. Ba5 {[%emt 0:01:04]} Bd6 {[%emt 0:07:17]} 34. Bd2 {[%emt 0:00:27]} Be7 {[%emt 0:02:52]} 35. Be3 {[%emt 0:00:22]} Bd6 {[%emt 0:00:18]} 36. Bg1 {[%emt 0:00:43]} Be7 {[%emt 0:00:37]} 37. Bh2 {[%emt 0:00:16]} c6 {[%emt 0:00:29]} 38. Bg1 {[%emt 0:00:50]} Bd6 {[%emt 0:00:28]} 39. Bb6 {[%emt 0:00:35]} Be7 {[%emt 0:00:28]} 40. Be3 1/2-1/2

[Event "WSTCC-65 2024"]
[Site "Krakow"]
[Date "2024.07.06"]
[Round "5.6"]
[White "Bykhovsky, Avigdor"]
[Black "Baker, Chris W"]
[Result "1/2-1/2"]
[ECO "A15"]
[WhiteElo "2335"]
[BlackElo "2198"]
[Annotator "TA"]
[PlyCount "30"]
[EventDate "2024.07.01"]
[EventType "team-tourn"]
[EventCountry "POL"]
[SourceTitle "playchess.com"]
[Source "ChessBase"]
[SourceQuality "1"]
[TimeControl "40/5400+30:1800+30"]

{[%evp 25,30,-4,35,37,33,16,27]} 1. c4 {[%emt 0:00:04]} Nf6 {[%emt 0:00:25]} 2. g3 {[%emt 0:01:40]} c5 {[%emt 0:01:03]} 3. Bg2 {[%emt 0:01:19]} g6 {[%emt 0:00:19]} 4. Nc3 {[%emt 0:03:26]} Bg7 {[%emt 0:00:27]} 5. e4 {[%emt 0:05:08]} Nc6 {[%emt 0:00:50]} 6. Nge2 {[%emt 0:00:28]} O-O {[%emt 0:03:36]} 7. d3 {[%emt 0:02:45]} d6 {[%emt 0:00:27]} 8. O-O {[%emt 0:00:56]} Bd7 {[%emt 0:05:25]} 9. h3 {[%emt 0:00:21]} a6 {[%emt 0:04:03]} 10. a3 {[%emt 0:15:50]} Rb8 {[%emt 0:04:35]} 11. Rb1 {[%emt 0:00:36]} b5 {[%emt 0:00:31]} 12. cxb5 {[%emt 0:00:54]} axb5 {[%emt 0:00:07]} 13. b4 {[%emt 0:00:05]} cxb4 {[%emt 0:01:02]} 14. axb4 {[%emt 0:00:25]} Ne8 {[%emt 0:07:28]} 15. Kh2 {[%emt 0:05:43]} Nc7 {[%emt 0:03:10] OK:         	---       	Schwarz=1} 1/2-1/2

[Event "WSTCC-65 2024"]
[Site "Krakow"]
[Date "2024.07.06"]
[Round "5.6"]
[White "Soderberg, Per"]
[Black "Pruefer, Friedbert"]
[Result "1-0"]
[ECO "B01"]
[WhiteElo "2015"]
[BlackElo "2214"]
[Annotator "TA"]
[PlyCount "93"]
[EventDate "2024.07.01"]
[EventType "team-tourn"]
[EventCountry "POL"]
[SourceTitle "playchess.com"]
[Source "ChessBase"]
[SourceQuality "1"]
[TimeControl "40/5400+30:1800+30"]

{[%evp 9,93,47,56,37,56,41,43,43,54,31,49,29,34,32,46,36,41,41,41,29,47,49,48,30,38,18,45,46,38,25,34,37,46,16,16,0,0,-9,76,-77,14,14,77,68,59,56,54,64,542,489,538,534,543,543,612,537,600,608,610,610,610,597,589,603,604,570,560,569,693,693,681,693,807,532,908,820,954,947,1436,1293,5583,5583,5279,5150,1708,1528]} 1. e4 {[%emt 0:00:03]} d5 {[%emt 0:00:04]} 2. exd5 {[%emt 0:00:08]} Qxd5 {[%emt 0:00:02]} 3. Nc3 {[%emt 0:00:30]} Qd6 {[%emt 0:00:09]} 4. d4 {[%emt 0:00:53]} Nf6 {[%emt 0:00:11]} 5. Nf3 {[%emt 0:08:23]} c6 {[%emt 0:01:48]} 6. g3 {[%emt 0:02:32]} Bf5 {[%emt 0:07:00]} 7. Bg2 {[%emt 0:00:36]} e6 {[%emt 0:02:35]} 8. O-O {[%emt 0:01:24] Weiß steht etwas besser.} Be7 {[%emt 0:01:11]} 9. Ne2 {[%emt 0:08:54]} Nbd7 {[%emt 0:31:53]} 10. c4 {[%emt 0:06:54]} Qb4 {[%emt 0:11:46]} 11. b3 {[%emt 0:02:25]} Ne4 {[%emt 0:03:38]} 12. a3 {[%emt 0:06:23]} Qa5 {[%emt 0:02:42]} 13. Bb2 {[%emt 0:07:15][%cal Od4d5]} O-O {[%emt 0:00:39]} 14. Nf4 {[%emt 0:10:29]} Rad8 {[%emt 0:03:12]} 15. Qe2 {[%emt 0:01:11][%cal Og3g4]} Qc7 {[%emt 0:08:13]} 16. Rfd1 {[%emt 0:05:22]} Rfe8 {[%emt 0:01:18]} 17. Rac1 {[%emt 0:02:20]} Qb8 {[%emt 0:01:14]} 18. Nd3 {[%emt 0:09:47]} Nef6 {[%emt 0:08:10]} 19. Nh4 {[%emt 0:01:12]} Bg4 {[%emt 0:02:33]} 20. f3 {[%emt 0:00:38]} Bf5 {[%emt 0:00:01]} 21. Nxf5 {[%emt 0:02:10]} exf5 {[%emt 0:00:02]} 22. Qc2 {[%emt 0:00:43]} Bd6 {[%emt 0:00:48]} 23. Re1 {[%emt 0:01:23]} h5 {[%emt 0:00:07]} (23... f4 $11 {bleibt in der Remisbreite.} 24. g4 h6) 24. Nf2 $2 {[%emt 0:01:38] [#]} (24. f4 $16) 24... g6 {[%emt 0:01:22]} (24... f4 $1 $17 {[%cal Rf4g3]} 25. g4 hxg4 26. Nxg4 Nxg4 27. fxg4 Re3) 25. f4 $11 {[%emt 0:02:50]} Ng4 {[%emt 0:01:21]} (25... Bf8 $11 {hält das Gleichgewicht.}) 26. Nxg4 $16 {[%emt 0:00:23]} hxg4 {[%emt 0:00:01]} 27. d5 {[%emt 0:02:43]} Be7 $1 {[%emt 0:00:49]} 28. Rcd1 {[%emt 0:04:47]} Bf6 $2 {[%emt 0:00:19][%mdl 8192] Verliert die Partie.} (28... a5 $14) 29. Rxe8+ $18 {[%emt 0:00:35] Weiß steht klar auf Gewinn.} ({Und nicht} 29. dxc6 Rxe1+ 30. Rxe1 Bxb2 (30... bxc6 31. Bxf6 Nxf6 32. c5 $11) 31. Qxb2 bxc6 $11) 29... Rxe8 {[%emt 0:00:01]} 30. dxc6 {[%emt 0:00:21]} bxc6 {[%emt 0:03:50]} 31. Rxd7 {[%emt 0:02:14]} Re1+ {[%emt 0:01:55]} 32. Bf1 {[%emt 0:01:29]} Qb6+ {[%emt 0:00:57]} 33. c5 {[%emt 0:05:59]} Qb5 {[%emt 0:00:57]} 34. Qf2 {[%emt 0:00:07][%cal Ob2f6]} Rxf1+ {[%emt 0:03:20]} 35. Qxf1 {[%emt 0:00:07]} Qxc5+ {[%emt 0:00:03]} 36. Qf2 {[%emt 0:00:30]} Qxf2+ {[%emt 0:00:20]} 37. Kxf2 {[%emt 0:00:06]} Bxb2 {[%emt 0:00:01][%mdl 4096] Endspiel. KR-KB} 38. a4 {[%emt 0:00:23]} (38. Rxa7 $2 {ist das falsche Schlagen.} Bd4+ 39. Ke1 Bxa7 $19) 38... a5 {[%emt 0:00:23]} 39. Rc7 {[%emt 0:01:10]} Bd4+ {[%emt 0:01:00]} 40. Ke2 {[%emt 0:00:15]} c5 {[%emt 0:01:45]} 41. Rd7 {[%emt 0:31:54]} Bg1 {[%emt 0:30:30]} 42. Rd8+ {[%emt 0:00:40]} Kg7 {[%emt 0:00:08]} 43. Ra8 {[%emt 0:00:10]} g5 {[%emt 0:01:39]} 44. fxg5 {[%emt 0:00:00]} Bxh2 {[%emt 0:00:00]} 45. Kf2 {[%emt 0:00:00][%cal Of2g2] [#] jetzt Kg2! und aus.} f4 {[%emt 0:00:00]} 46. gxf4 {[%emt 0:00:00]} Bxf4 {[%emt 0:00:00]} 47. Rxa5 {[%emt 0:00:00] Gewichteter Fehlerwert: Weiß=0.26 (präzise) /Schwarz=0.41.  Verlustzug:     	---       	Schwarz=1     Fehler:       	Weiß=1     	Schwarz=3     Ungenau:       	Weiß=1     	Schwarz=1     OK:         	Weiß=8     	Schwarz=13    Bester:       	Weiß=3     	---        Stark:        	---       	Schwarz=1} 1-0

[Event "WSTCC-65 2024"]
[Site "Krakow"]
[Date "2024.07.06"]
[Round "5.6"]
[White "Wood, Peter R"]
[Black "Mueller, Gerhard"]
[Result "1/2-1/2"]
[ECO "B25"]
[WhiteElo "1948"]
[BlackElo "2070"]
[Annotator "NA RC"]
[PlyCount "80"]
[EventDate "2024.07.01"]
[EventType "team-tourn"]
[EventCountry "POL"]
[SourceTitle "playchess.com"]
[Source "ChessBase"]
[SourceQuality "1"]
[TimeControl "40/5400+30:1800+30"]

1. e4 {[%emt 0:00:13]} c5 {[%emt 0:00:04]} 2. Nc3 {[%emt 0:00:19]} d6 {[%emt 0:00:06]} 3. g3 {[%emt 0:00:26]} Nc6 {[%emt 0:00:06]} 4. Bg2 {[%emt 0:00:13]} g6 {[%emt 0:00:06]} 5. d3 {[%emt 0:00:41]} Bg7 {[%emt 0:00:07]} 6. f4 {[%emt 0:00:36]} e6 {[%emt 0:00:12]} 7. Nf3 {[%emt 0:00:22]} Nge7 {[%emt 0:00:11]} 8. O-O {[%emt 0:00:26]} O-O {[%emt 0:00:07]} 9. Be3 {[%emt 0:01:26]} Nd4 {[%emt 0:01:01]} 10. e5 {[%emt 0:07:26]} Nef5 {[%emt 0:05:51]} 11. Bf2 {[%emt 0:00:11]} Nxf3+ {[%emt 0:00:54]} 12. Qxf3 {[%emt 0:00:36]} Nd4 {[%emt 0:00:42]} 13. Qd1 {[%emt 0:00:08]} dxe5 {[%emt 0:01:57]} 14. fxe5 {[%emt 0:00:09]} Bxe5 {[%emt 0:00:45]} 15. Ne4 {[%emt 0:00:20]} f5 {[%emt 0:01:38]} 16. Nxc5 {[%emt 0:03:29]} Qd6 {[%emt 0:05:33]} 17. b4 {[%emt 0:17:13]} Nc6 {[%emt 0:10:16]} 18. Rb1 {[%emt 0:02:58]} Bd4 {[%emt 0:08:11]} 19. Qd2 {[%emt 0:05:08]} Rb8 {[%emt 0:11:51]} 20. a3 {[%emt 0:09:03]} b6 {[%emt 0:03:21]} 21. Nb3 {[%emt 0:01:05]} Bg7 {[%emt 0:04:25]} 22. Qf4 {[%emt 0:08:03]} Qxf4 {[%emt 0:07:01]} 23. gxf4 {[%emt 0:00:17]} Bb7 {[%emt 0:00:22]} 24. Rbe1 {[%emt 0:12:57]} Kf7 {[%emt 0:01:25]} 25. b5 {[%emt 0:01:52]} Nd8 {[%emt 0:01:50]} 26. Nd4 {[%emt 0:05:28]} Bxg2 {[%emt 0:00:43]} 27. Kxg2 {[%emt 0:00:06]} Re8 {[%emt 0:00:50]} 28. Nf3 {[%emt 0:00:39]} h6 {[%emt 0:01:35]} 29. h4 {[%emt 0:06:11]} Rc8 {[%emt 0:00:57]} 30. c4 {[%emt 0:01:19]} Nb7 {[%emt 0:00:55]} 31. Ne5+ {[%emt 0:00:43]} Bxe5 {[%emt 0:00:39]} 32. Rxe5 {[%emt 0:00:15]} Red8 {[%emt 0:03:48]} 33. Rfe1 {[%emt 0:05:20]} Rxd3 {[%emt 0:02:01]} 34. Rxe6 {[%emt 0:00:39]} Rd7 {[%emt 0:00:09]} 35. h5 {[%emt 0:02:01]} Rg8 {[%emt 0:05:55]} 36. hxg6+ {[%emt 0:01:01]} Rxg6+ {[%emt 0:00:09]} 37. Rxg6 {[%emt 0:00:14]} Kxg6 {[%emt 0:00:01]} 38. Re6+ {[%emt 0:00:22]} Kh5 {[%emt 0:01:17]} 39. a4 {[%emt 0:01:58]} Kg4 {[%emt 0:02:25]} 40. Rxh6 {[%emt 0:00:51]} Kxf4 {[%emt 0:00:16]} 1/2-1/2

[Event "WSTCC-65 2024"]
[Site "Krakow"]
[Date "2024.07.06"]
[Round "5.7"]
[White "Stebbings, Anthony J"]
[Black "Maryasin, Boris"]
[Result "1/2-1/2"]
[ECO "E48"]
[WhiteElo "2240"]
[BlackElo "2209"]
[Annotator "TA"]
[PlyCount "46"]
[EventDate "2024.07.01"]
[EventType "team-tourn"]
[EventCountry "POL"]
[SourceTitle "playchess.com"]
[Source "ChessBase"]
[SourceQuality "1"]
[TimeControl "40/5400+30:1800+30"]

{[%evp 13,46,-11,-9,-7,-11,-11,-6,-8,12,0,0,0,39,37,28,35,79,65,100,88,99,102,99,85,156,176,191,178,190,123,130,59,62,0,0]} 1. d4 {[%emt 0:00:03]} Nf6 {[%emt 0:00:31]} 2. c4 {[%emt 0:00:05]} e6 {[%emt 0:00:23]} 3. Nc3 {[%emt 0:00:06]} Bb4 {[%emt 0:00:12]} 4. e3 {[%emt 0:00:06]} O-O {[%emt 0:00:10]} 5. Bd3 {[%emt 0:00:06]} d5 {[%emt 0:00:49]} 6. cxd5 {[%emt 0:00:06]} exd5 {[%emt 0:00:15]} 7. Nge2 {[%emt 0:00:06]} Re8 {[%emt 0:01:47]} 8. Bd2 {[%emt 0:00:08]} Nbd7 {[%emt 0:01:29][%cal Bb8d7,Bd7f8,Bf8g6][%mdl 32]} 9. Rc1 {[%emt 0:01:01]} c6 {[%emt 0:01:35]} 10. O-O {[%emt 0:00:30]} Nf8 {[%emt 0:00:32]} 11. Qe1 {[%emt 0:06:12][%cal Oc3d5]} Bd6 {[%emt 0:00:46]} 12. f3 {[%emt 0:00:31]} b5 {[%emt 0:03:30]} 13. Qf2 {[%emt 0:10:56]} Ng6 {[%emt 0:11:47]} 14. Ng3 {[%emt 0:14:49]} a6 {[%emt 0:15:54]} 15. Nce2 {[%emt 0:04:13]} Qb6 {[%emt 0:05:57]} 16. e4 {[%emt 0:05:02]} dxe4 {[%emt 0:02:35]} 17. fxe4 {[%emt 0:00:24]} Be6 {[%emt 0:00:31]} 18. h3 {[%emt 0:06:58] Prevents Ng4.} Rad8 {[%emt 0:02:30] [#]} (18... Bc4 $142 19. Bxc4 bxc4) 19. Be3 $1 $16 {[%emt 0:03:47] e5 is the strong threat.} Bxa2 {[%emt 0:07:57]} 20. e5 {[%emt 0:05:41]} Nd5 {[%emt 0:00:32] [#] Hoping for ...Nxe3.} 21. Qxf7+ {[%emt 0:00:49]} ({Better is} 21. Bg5 $1 $18 Nxe5 22. Bxd8 (22. dxe5 Qxf2+ 23. Rxf2 Bxe5 $18) 22... Rxd8 23. dxe5 Qxf2+ 24. Kxf2 (24. Rxf2 Bxe5 25. Rf3 g6 $18) 24... Bxe5 25. Rcd1 (25. Rxc6 Nb4 $11)) 21... Kh8 {[%emt 0:00:03] Threatens to win with ...Nxe5.} 22. exd6 {[%emt 0:07:00]} (22. Bxg6 $16 Nxe3 23. Qxa2 Nxf1 24. Rxf1 (24. Bxe8 $2 Nxg3 25. exd6 Nxe2+ 26. Kh1 Rxe8 $19) 24... Rxe5 25. Be4) 22... Rf8 $1 $14 {[%emt 0:10:29]} 23. Qe6 {[%emt 0:01:42]} (23. Bxg6 $1 $14 Rxf7 (23... Nxe3 $2 {too greedy.} 24. Qxf8+ Bg8 25. Be8 $18) 24. Bxf7 Nxe3 25. Bxa2 Nxf1 26. Rxf1) 23... Rfe8 $1 {[%emt 0:00:12] Weighted Error Value: White=0.18 (very precise) /Black=0.15 (very precise) .  Mistake:       	White=3     	Black=1      Inaccurate:     	---       	Black=3      OK:         	White=7     	Black=5      Strong:       	---       	Black=2} 1/2-1/2

[Event "WSTCC-65 2024"]
[Site "Krakow"]
[Date "2024.07.06"]
[Round "5.7"]
[White "Baum, Bernd"]
[Black "Hammar, Bengt"]
[Result "1/2-1/2"]
[ECO "A04"]
[WhiteElo "2203"]
[BlackElo "2127"]
[Annotator "RC"]
[PlyCount "51"]
[EventDate "2024.07.01"]
[EventType "team-tourn"]
[EventCountry "POL"]
[SourceTitle "playchess.com"]
[Source "ChessBase"]
[SourceQuality "1"]
[TimeControl "40/5400+30:1800+30"]

1. Nf3 {[%emt 0:00:04]} d6 {[%emt 0:02:50]} 2. d4 {[%emt 0:01:58]} Nf6 {[%emt 0:00:20]} 3. Nc3 {[%emt 0:00:22]} Nbd7 {[%emt 0:01:13]} 4. e4 {[%emt 0:00:21]} e5 {[%emt 0:00:30]} 5. Be2 {[%emt 0:02:14]} c6 {[%emt 0:07:32]} 6. a4 {[%emt 0:00:21]} a5 {[%emt 0:00:20]} 7. O-O {[%emt 0:00:08]} Be7 {[%emt 0:00:58]} 8. Re1 {[%emt 0:03:19]} O-O {[%emt 0:01:36]} 9. h3 {[%emt 0:01:23]} Qc7 {[%emt 0:01:37]} 10. Bf1 {[%emt 0:03:17]} Re8 {[%emt 0:01:01]} 11. b3 {[%emt 0:05:59]} Bf8 {[%emt 0:03:11]} 12. Bb2 {[%emt 0:02:08]} exd4 {[%emt 0:03:47]} 13. Qxd4 {[%emt 0:06:02]} Nc5 {[%emt 0:01:33]} 14. Rad1 {[%emt 0:01:56]} Bd7 {[%emt 0:02:08]} 15. Nd2 {[%emt 0:04:55]} Rad8 {[%emt 0:01:46]} 16. Nc4 {[%emt 0:01:17]} Bc8 {[%emt 0:01:18]} 17. g3 {[%emt 0:05:15]} d5 {[%emt 0:09:52]} 18. exd5 {[%emt 0:02:35]} Rxe1 {[%emt 0:00:16]} 19. Rxe1 {[%emt 0:00:06]} Nxd5 {[%emt 0:00:06]} 20. Nxd5 {[%emt 0:10:18]} Rxd5 {[%emt 0:00:08]} 21. Qc3 {[%emt 0:05:00]} Ne6 {[%emt 0:00:50]} 22. Bg2 {[%emt 0:01:52]} Bb4 {[%emt 0:01:14]} 23. Qe3 {[%emt 0:09:28]} Bxe1 {[%emt 0:04:22]} 24. Qxe1 {[%emt 0:00:14]} Rd8 {[%emt 0:01:10]} 25. Kh2 {[%emt 0:10:15]} f6 {[%emt 0:22:58]} 26. Nxa5 {[%emt 0:02:22]} 1/2-1/2

[Event "WSTCC-65 2024"]
[Site "Krakow"]
[Date "2024.07.06"]
[Round "5.7"]
[White "Lange, Torsten"]
[Black "Kane, Robert"]
[Result "1-0"]
[ECO "A16"]
[WhiteElo "2027"]
[BlackElo "1849"]
[Annotator "NA RC"]
[PlyCount "88"]
[EventDate "2024.07.01"]
[EventType "team-tourn"]
[EventCountry "POL"]
[SourceTitle "playchess.com"]
[Source "ChessBase"]
[SourceQuality "1"]
[TimeControl "40/5400+30:1800+30"]

1. c4 {[%emt 0:00:03]} Nf6 {[%emt 0:01:13]} 2. Nc3 {[%emt 0:00:06]} g6 {[%emt 0:00:26]} 3. Nf3 {[%emt 0:00:07]} d6 {[%emt 0:00:48]} 4. g3 {[%emt 0:00:14]} Bg7 {[%emt 0:00:29]} 5. Bg2 {[%emt 0:00:06]} O-O {[%emt 0:00:44]} 6. O-O {[%emt 0:00:05]} e5 {[%emt 0:00:44]} 7. d3 {[%emt 0:00:13]} Nc6 {[%emt 0:00:57]} 8. Bg5 {[%emt 0:00:59]} h6 {[%emt 0:01:30]} 9. Bxf6 {[%emt 0:00:06]} Bxf6 {[%emt 0:01:07]} 10. Rb1 {[%emt 0:01:25]} Be6 {[%emt 0:04:01]} 11. Nd2 {[%emt 0:00:18]} Bg7 {[%emt 0:03:39]} 12. b4 {[%emt 0:01:23]} Qd7 {[%emt 0:03:28]} 13. b5 {[%emt 0:01:44]} Nd8 {[%emt 0:00:25]} 14. a4 {[%emt 0:02:45]} e4 {[%emt 0:05:12]} 15. Qb3 {[%emt 0:03:31]} exd3 {[%emt 0:01:40]} 16. exd3 {[%emt 0:00:07]} Bh3 {[%emt 0:01:15]} 17. Ne2 {[%emt 0:11:35]} Bxg2 {[%emt 0:04:02]} 18. Kxg2 {[%emt 0:00:07]} Ne6 {[%emt 0:02:02]} 19. f4 {[%emt 0:01:36]} Nc5 {[%emt 0:06:25]} 20. Qc2 {[%emt 0:01:43]} Rfe8 {[%emt 0:06:40]} 21. Ne4 {[%emt 0:22:50]} Nxe4 {[%emt 0:06:42]} 22. dxe4 {[%emt 0:00:21]} Qe6 {[%emt 0:00:05]} 23. e5 {[%emt 0:08:19]} f5 {[%emt 0:00:13]} 24. Nd4 {[%emt 0:10:21]} Qe7 {[%emt 0:06:11]} 25. exd6 {[%emt 0:01:22]} Qxd6 {[%emt 0:00:30]} 26. Nf3 {[%emt 0:00:33]} Qc5 {[%emt 0:02:49]} 27. Rbe1 {[%emt 0:03:51]} Kh7 {[%emt 0:05:32]} 28. Re2 {[%emt 0:02:46]} c6 {[%emt 0:02:01]} 29. Rfe1 {[%emt 0:00:52]} Rxe2+ {[%emt 0:00:50]} 30. Rxe2 {[%emt 0:06:50]} Rc8 {[%emt 0:04:09]} 31. Qd3 {[%emt 0:02:23]} cxb5 {[%emt 0:01:28]} 32. cxb5 {[%emt 0:00:13]} Qc1 {[%emt 0:06:54]} 33. Nh4 {[%emt 0:13:51]} Qc7 {[%emt 0:03:07]} 34. Qd5 {[%emt 0:02:28]} Qc4 {[%emt 0:05:11]} 35. Qe6 {[%emt 0:01:06]} Qxe6 {[%emt 0:02:22]} 36. Rxe6 {[%emt 0:00:06]} Rc4 {[%emt 0:00:27]} 37. Nxg6 {[%emt 0:00:15]} Rxa4 {[%emt 0:00:17]} 38. Nh4 {[%emt 0:00:18]} Rb4 {[%emt 0:02:05]} 39. Nxf5 {[%emt 0:00:42]} Rxb5 {[%emt 0:00:32]} 40. g4 {[%emt 0:00:14]} Rb6 {[%emt 0:02:11]} 41. Re7 {[%emt 0:31:58]} Rg6 {[%emt 0:31:54]} 42. Rxb7 {[%emt 0:00:14]} Rxg4+ {[%emt 0:00:33]} 43. Kf3 {[%emt 0:00:11]} Rg6 {[%emt 0:03:34]} 44. Rxa7 {[%emt 0:00:17]} Kg8 {[%emt 0:00:18]} 1-0

[Event "WSTCC-65 2024"]
[Site "Krakow"]
[Date "2024.07.06"]
[Round "5.8"]
[White "Lederman, Leon"]
[Black "Beaumont, Chris R"]
[Result "1-0"]
[ECO "B35"]
[WhiteElo "2198"]
[BlackElo "2198"]
[Annotator "RC"]
[PlyCount "41"]
[EventDate "2024.07.01"]
[EventType "team-tourn"]
[EventCountry "POL"]
[SourceTitle "playchess.com"]
[Source "ChessBase"]
[SourceQuality "1"]
[TimeControl "40/5400+30:1800+30"]

1. e4 {[%emt 0:00:12]} c5 {[%emt 0:02:40]} 2. Nf3 {[%emt 0:00:04]} g6 {[%emt 0:00:09]} 3. d4 {[%emt 0:00:06]} cxd4 {[%emt 0:00:06]} 4. Nxd4 {[%emt 0:00:01]} Nc6 {[%emt 0:00:19]} 5. Nc3 {[%emt 0:00:09]} Bg7 {[%emt 0:00:12]} 6. Be3 {[%emt 0:00:05]} Nf6 {[%emt 0:00:13]} 7. Bc4 {[%emt 0:00:06]} O-O {[%emt 0:00:15]} 8. Bb3 {[%emt 0:00:05]} d6 {[%emt 0:00:20]} 9. f3 {[%emt 0:00:04]} Qa5 {[%emt 0:01:39]} 10. Qd2 {[%emt 0:00:18]} Nxd4 {[%emt 0:00:22]} 11. Bxd4 {[%emt 0:00:05]} Be6 {[%emt 0:00:21]} 12. h4 {[%emt 0:01:24]} b5 {[%emt 0:01:50]} 13. h5 {[%emt 0:01:06]} b4 {[%emt 0:00:15]} 14. Ne2 {[%emt 0:00:46]} Bxb3 {[%emt 0:09:13]} 15. cxb3 {[%emt 0:00:06]} Rfc8 {[%emt 0:19:13]} 16. g4 {[%emt 0:05:26]} e5 {[%emt 0:11:50]} 17. Be3 {[%emt 0:03:55]} d5 {[%emt 0:00:22]} 18. hxg6 {[%emt 0:00:53]} fxg6 {[%emt 0:06:52]} 19. g5 {[%emt 0:03:33]} d4 {[%emt 0:00:52]} 20. gxf6 {[%emt 0:00:27]} dxe3 {[%emt 0:00:08]} 21. Qd7 {[%emt 0:00:38]} 1-0

[Event "WSTCC-65 2024"]
[Site "Krakow"]
[Date "2024.07.06"]
[Round "5.8"]
[White "Scowen, Roger S"]
[Black "Thoele, Wolfgang"]
[Result "1/2-1/2"]
[ECO "B34"]
[WhiteElo "1888"]
[BlackElo "1890"]
[Annotator "NA RC"]
[PlyCount "35"]
[EventDate "2024.07.01"]
[EventType "team-tourn"]
[EventCountry "POL"]
[SourceTitle "playchess.com"]
[Source "ChessBase"]
[SourceQuality "1"]
[TimeControl "40/5400+30:1800+30"]

1. e4 {[%emt 0:00:07]} c5 {[%emt 0:00:10]} 2. Nf3 {[%emt 0:00:08]} Nc6 {[%emt 0:00:07]} 3. d4 {[%emt 0:00:20]} cxd4 {[%emt 0:00:08]} 4. Nxd4 {[%emt 0:00:07]} g6 {[%emt 0:00:13]} 5. Nxc6 {[%emt 0:03:56]} bxc6 {[%emt 0:00:09]} 6. c4 {[%emt 0:09:10]} Bg7 {[%emt 0:00:11]} 7. Nc3 {[%emt 0:00:21]} d6 {[%emt 0:00:44]} 8. Be2 {[%emt 0:00:46]} Qc7 {[%emt 0:07:11]} 9. Qc2 {[%emt 0:01:37]} Nf6 {[%emt 0:00:20]} 10. Bg5 {[%emt 0:02:33]} O-O {[%emt 0:00:20]} 11. O-O {[%emt 0:00:59]} Bb7 {[%emt 0:01:57]} 12. f4 {[%emt 0:03:53]} h6 {[%emt 0:00:57]} 13. Bh4 {[%emt 0:01:41]} Nh7 {[%emt 0:25:50]} 14. Rac1 {[%emt 0:03:58]} Bf6 {[%emt 0:06:19]} 15. Bg3 {[%emt 0:02:23]} Bg7 {[%emt 0:04:15]} 16. Bh4 {[%emt 0:08:25]} Bf6 {[%emt 0:00:18]} 17. Bg3 {[%emt 0:00:09]} Bg7 {[%emt 0:00:04]} 18. Bh4 1/2-1/2